fUST/lending_fUST_20240415
["ID","MTS","AMOUNT","RATE_DAILY","PERIOD"]
[322643711,1713163840267,-322.00067067,0.00034808,2]
[322643715,1713163840280,-1116.53047687,0.00034808,2]
[322643719,1713163840290,-184.42576029,0.000349,7]
[322643721,1713163840299,-12729.13421738,0.00035,4]
[322643724,1713163840308,-596.97026302,0.00035055,2]
[322643727,1713163840318,-639.09692236,0.00035056,2]
[322643730,1713163840327,-165.60999046,0.00035155,2]
[322643732,1713163840337,-625.48929994,0.00035614,2]
[322643734,1713163840346,-548.51866573,0.00035614,4]
[322643735,1713163840355,-217.3587227,0.00035615,4]
[322643736,1713163840364,-303.60290042,0.00035615,4]
[322643737,1713163840373,-2854.55085205,0.00035615,4]
[322643738,1713163840383,-408.76880317,0.00035615,4]
[322643739,1713163840392,-8000.0,0.00035615,4]
[322643741,1713163840401,-2501.351617,0.00035616,120]
[322643742,1713163840410,-165.60999046,0.00035923,2]
[322643743,1713163840420,-925.94770365,0.00036097,4]
[322643744,1713163840429,-232.0,0.00036387,2]
[322643745,1713163840439,-165.60999046,0.00036692,2]
[322643746,1713163840448,-240.24245022,0.00036801,4]
[322643747,1713163840457,-978.19363666,0.00036801,4]
[322643748,1713163840466,-156.99903353,0.00036801,4]
[322643749,1713163840475,-154.84515485,0.00036801,2]
[322643750,1713163840485,-154.98440874,0.00036801,4]
[322643751,1713163840495,-887.82162217,0.00036801,4]
[322643752,1713163840505,-254.93253828,0.00036801,4]
[322643753,1713163840514,-154.82968734,0.00036802,4]
[322643754,1713163840523,-37010.9170339,0.00036803,4]
[322643755,1713163840798,-7634.19732526,0.00036803,4]
[322643764,1713163842845,-539.2143698,0.00036704,2]
[322643765,1713163842855,-123.7626302,0.00036803,4]
[322643804,1713163844017,-596.97026302,0.00035,2]
[322643805,1713163844027,-11231.03901065,0.00036803,4]
[322643806,1713163844036,-157.42885592,0.00036804,4]
[322643807,1713163844045,-525.209166,0.00036804,4]
[322643808,1713163844055,-282.59630423,0.00036804,4]
[322643809,1713163844064,-240.94703798,0.00036804,4]
[322643810,1713163844074,-277.31237042,0.00036804,4]
[322643811,1713163844085,-3057.89588574,0.00036804,4]
[322643812,1713163844094,-242.99498652,0.00036804,4]
[322643813,1713163844104,-666.2937328,0.00036805,4]
[322643814,1713163844114,-620.95484612,0.00036809,2]
[322643815,1713163844123,-539.21436979,0.00037003,2]
[322643816,1713163844133,-165.60999046,0.0003746,2]
[322643817,1713163844142,-3000.0,0.000375,14]
[322643818,1713163844152,-3000.0,0.0003751,14]
[322643819,1713163844162,-3000.0,0.0003752,14]
[322643820,1713163844172,-3000.0,0.0003753,14]
[322643821,1713163844182,-3000.0,0.0003754,14]
[322643822,1713163844192,-3000.0,0.0003755,14]
[322643823,1713163844203,-3000.0,0.0003756,14]
[322643824,1713163844213,-3000.0,0.0003757,14]
[322643825,1713163844222,-184.42576027,0.00037571,8]
[322643826,1713163844231,-3000.0,0.0003758,14]
[322643827,1713163844241,-154.73694719,0.00037586,4]
[322643828,1713163844251,-862.43790179,0.00037587,4]
[322643829,1713163844260,-406.556608,0.00037587,4]
[322643830,1713163844270,-248.68404168,0.00037588,4]
[322643831,1713163844279,-155.15810535,0.00037588,4]
[322643832,1713163844289,-1486.10103869,0.00037588,4]
[322643833,1713163844298,-3530.35061339,0.00037588,4]
[322643834,1713163844308,-155.40270201,0.00037589,2]
[322643835,1713163844317,-185.00726139,0.00037589,4]
[322643836,1713163844326,-500.0,0.00037589,2]
[322643837,1713163844339,-340.21515474,0.00037589,4]
[322643838,1713163844348,-1033.65728179,0.00037589,4]
[322643839,1713163844359,-3000.0,0.0003759,14]
[322643840,1713163844368,-3000.0,0.000376,14]
[322643841,1713163844378,-3000.0,0.0003761,14]
[322643843,1713163844387,-2525.92366023,0.00037617,4]
[322643845,1713163844396,-150.98554921,0.0003762,2]
[322643847,1713163844405,-3000.0,0.0003762,14]
[322643848,1713163844415,-3000.0,0.0003763,14]
[322643849,1713163844424,-3000.0,0.0003764,14]
[322643850,1713163844433,-9759.6194903,0.00037648,2]
[322643851,1713163844442,-3000.0,0.0003765,15]
[322643852,1713163844451,-3000.0,0.0003766,15]
[322643853,1713163844462,-43736.8507554,0.0003767,5]
[322643854,1713163844471,-3000.0,0.0003767,15]
[322643855,1713163844480,-3000.0,0.0003768,15]
[322643856,1713163844489,-3000.0,0.0003769,15]
[322643857,1713163844498,-3000.0,0.000377,15]
[322643858,1713163844507,-3000.0,0.0003771,15]
[322643859,1713163844516,-3000.0,0.0003772,15]
[322643860,1713163844525,-3000.0,0.0003773,15]
[322643861,1713163844534,-3000.0,0.0003774,15]
[322643862,1713163844543,-3000.0,0.0003775,15]
[322643863,1713163844552,-3000.0,0.0003776,15]
[322643864,1713163844561,-3000.0,0.0003777,15]
[322643865,1713163844570,-3000.0,0.0003778,15]
[322643866,1713163844579,-3000.0,0.0003779,15]
[322643867,1713163844593,-500.0,0.000378,2]
[322643868,1713163844602,-3000.0,0.000378,15]
[322643869,1713163844611,-3000.0,0.0003781,15]
[322643870,1713163844621,-3000.0,0.0003782,15]
[322643871,1713163844630,-680.164012,0.00037829,2]
[322643872,1713163844639,-3000.0,0.0003783,15]
[322643873,1713163844649,-3000.0,0.0003784,15]
[322643874,1713163844658,-3000.0,0.0003785,15]
[322643875,1713163844667,-3000.0,0.0003786,15]
[322643876,1713163844677,-3000.0,0.0003787,16]
[322643877,1713163844686,-1242.51023388,0.00037878,4]
[322643878,1713163844695,-3000.0,0.0003788,16]
[322643879,1713163844704,-3000.0,0.0003789,16]
[322643880,1713163844713,-3000.0,0.000379,16]
[322643881,1713163844722,-3193.86681657,0.000379,2]
[322643882,1713163844731,-3000.0,0.0003791,16]
[322643883,1713163844740,-3000.0,0.0003792,16]
[322643884,1713163844749,-3000.0,0.0003793,16]
[322643885,1713163844758,-9394.86542554,0.00037939,7]
[322643886,1713163844767,-3000.0,0.0003794,16]
[322643887,1713163844778,-3000.0,0.0003795,16]
[322643888,1713163844787,-3000.0,0.0003796,16]
[322643889,1713163844798,-3000.0,0.0003797,16]
[322643890,1713163844807,-3000.0,0.0003798,16]
[322643891,1713163844817,-3000.0,0.0003799,16]
[322643892,1713163844828,-188.93309274,0.00037997,4]
[322643893,1713163844840,-313.48323252,0.00037997,4]
[322643894,1713163844849,-174.85908564,0.00037997,4]
[322643895,1713163844858,-618.96693129,0.00037997,4]
[322643896,1713163844868,-250.14081499,0.00037997,4]
[322643897,1713163844878,-246.31980084,0.00037997,4]
[322643898,1713163844887,-302.23678822,0.00037997,4]
[322643899,1713163844896,-353.96878806,0.00037997,2]
[322643900,1713163844907,-156.30875594,0.00037997,4]
[322643901,1713163844916,-207.2906563,0.00037997,4]
[322643902,1713163844925,-225.41827227,0.00037997,4]
[322643904,1713163844934,-211.55365242,0.00037997,4]
[322643905,1713163844943,-202.14839198,0.00037997,4]
[322643906,1713163844955,-386.28626428,0.00037997,4]
[322643907,1713163844965,-428.78761101,0.00037997,4]
[322643908,1713163844975,-465.39337493,0.00037997,4]
[322643909,1713163844984,-802.94875089,0.00037997,37]
[322643910,1713163844993,-6859.04402827,0.00037997,4]
[322643911,1713163845003,-239.52011832,0.00037997,4]
[322643912,1713163845012,-936.94622999,0.00037998,4]
[322643913,1713163845021,-215.98297057,0.00037998,4]
[322643914,1713163845030,-155.7590134,0.00037998,4]
[322643915,1713163845039,-155.12720431,0.00037998,4]
[322643916,1713163845049,-6747.01885684,0.00037999,7]
[322643917,1713163845058,-500.0,0.00037999,15]
[322643918,1713163845067,-500.0,0.00037999,15]
[322643919,1713163845076,-500.0,0.00037999,15]
[322643921,1713163845088,-500.0,0.00037999,15]
[322643923,1713163845098,-371.49023561,0.00037999,15]
[322643924,1713163845107,-593.70513916,0.00037999,15]
[322643925,1713163845120,-500.0,0.00037999,15]
[322643926,1713163845129,-264.6065591,0.00037999,15]
[322643927,1713163845138,-646.30803568,0.00037999,15]
[322643928,1713163845148,-500.0,0.00037999,15]
[322643930,1713163845158,-500.0,0.00037999,15]
[322643931,1713163845168,-500.0,0.00037999,15]
[322643932,1713163845177,-500.0,0.00037999,15]
[322643933,1713163845186,-275.87119857,0.00037999,15]
[322643934,1713163845196,-500.0,0.00037999,15]
[322643935,1713163845206,-500.0,0.00037999,15]
[322643936,1713163845215,-500.0,0.00037999,15]
[322643937,1713163845224,-500.0,0.00037999,15]
[322643938,1713163845233,-500.0,0.00037999,15]
[322643939,1713163845243,-621.62456957,0.00037999,15]
[322643940,1713163845252,-500.0,0.00037999,15]
[322643941,1713163845261,-500.0,0.00037999,15]
[322643942,1713163845270,-500.0,0.00037999,15]
[322643943,1713163845280,-500.0,0.00037999,15]
[322643944,1713163845289,-500.0,0.00037999,15]
[322643945,1713163845298,-500.0,0.00037999,15]
[322643946,1713163845307,-500.0,0.00037999,15]
[322643947,1713163845317,-500.0,0.00037999,15]
[322643948,1713163845327,-500.0,0.00037999,15]
[322643949,1713163845337,-500.0,0.00037999,15]
[322643950,1713163845346,-500.0,0.00037999,15]
[322643951,1713163845355,-500.0,0.00037999,15]
[322643952,1713163845364,-500.0,0.00037999,15]
[322643953,1713163845373,-500.0,0.00037999,15]
[322643954,1713163845382,-500.0,0.00037999,15]
[322643955,1713163845391,-561.20495411,0.00037999,15]
[322643956,1713163845400,-500.0,0.00037999,15]
[322643957,1713163845409,-1000.0,0.00038,3]
[322643958,1713163845418,-33985.028734,0.00038,30]
[322643959,1713163845427,-520594.73170911,0.00038,30]
[322643967,1713163847261,-232.0,0.00036801,2]
[322643968,1713163847271,-539.21436979,0.00037302,2]
[322643969,1713163847281,-5251.39707827,0.00038,30]
[322643981,1713164032614,12125.42544896,0.0002,2]
[322643985,1713164115727,8481.9155051,0.0002,2]
[322643991,1713164399226,417.963855,0.00020604,2]
[322643992,1713164412132,24900.0,0.00020601,2]
[322643994,1713164492906,154.7215013,0.00020601,2]
[322643995,1713164512028,5000.0,0.000252,14]
[322643996,1713164512884,156.41677111,0.00020601,2]
[322643997,1713164521486,5000.0,0.000252,14]
[322643998,1713164529688,463.6057855,0.000252,14]
[322644001,1713164751103,-361.42917162,0.00021451,2]
[322644002,1713164751125,-824.03808533,0.00021451,2]
[322644004,1713164768998,611.0704117,0.00020615,2]
[322644005,1713164828138,-361.42917162,0.00021345,2]
[322644006,1713164828158,-154.70605849,0.00021345,2]
[322644007,1713164828185,-525.49067281,0.00021346,2]
[322644008,1713164828207,-888.05887897,0.00021346,2]
[322644009,1713164828231,-300.0,0.00021346,2]
[322644010,1713164828253,-99.63785322,0.00021346,2]
[322644011,1713164830103,-154.70605849,0.00021345,2]
[322644012,1713164830123,-200.36214678,0.00021346,2]
[322644013,1713164830145,-465.54275038,0.00021346,2]
[322644014,1713164830167,-4190.59686433,0.00021346,2]
[322644015,1713164834099,-154.70605849,0.00021344,2]
[322644016,1713164834121,-533.61249856,0.00021344,2]
[322644017,1713164861386,158.800896,0.00020071,2]
[322644018,1713164909535,24900.0,0.00020339,2]
[322644019,1713164945157,-300.0,0.00021328,2]
[322644020,1713164945181,-300.0,0.00021328,2]
[322644021,1713164945204,-8689.51623582,0.00021328,2]
[322644022,1713164953182,-408.25460692,0.00021327,2]
[322644023,1713164953210,-8000.0,0.00021327,2]
[322644024,1713164953235,-154.70605849,0.00021327,2]
[322644025,1713164953260,-868.70765867,0.00021328,2]
[322644026,1713164953282,-172.97629238,0.00021328,2]
[322644027,1713164953305,-41679.93748001,0.00021328,2]
[322644028,1713164953328,-926.17888641,0.00021329,2]
[322644029,1713164953350,-11376.79002419,0.00021329,2]
[322644030,1713164953372,-1574.32701702,0.0002133,2]
[322644031,1713164953393,-161.77699218,0.0002133,2]
[322644032,1713164953414,-154.70605849,0.0002133,2]
[322644033,1713164953435,-2124.60141988,0.0002133,2]
[322644034,1713164953459,-154.70605849,0.00021331,2]
[322644035,1713164953480,-3295.50625609,0.00021331,2]
[322644036,1713164953500,-5791.45874465,0.00021331,2]
[322644037,1713164953520,-154.70605849,0.00021331,2]
[322644038,1713164953542,-2940.2321375,0.00021331,2]
[322644039,1713164953564,-154.70605849,0.00021331,2]
[322644040,1713164953587,-3740.74588478,0.00021332,2]
[322644041,1713164953609,-154.70605849,0.00021332,2]
[322644042,1713164953633,-154.70605849,0.00021332,2]
[322644043,1713164953654,-4199.23386836,0.00021333,2]
[322644044,1713164953676,-154.70605849,0.00021333,2]
[322644045,1713164953702,-1000.0,0.00021333,2]
[322644046,1713164953724,-154.70605849,0.00021333,2]
[322644047,1713164953746,-193.29068397,0.00021333,2]
[322644048,1713164953768,-953.73793423,0.00021333,2]
[322644049,1713164953789,-465.54275038,0.00021333,2]
[322644050,1713164953810,-154.70605849,0.00021333,2]
[322644051,1713164953830,-622.68427412,0.00021334,2]
[322644052,1713164953851,-473.94455587,0.00021334,2]
[322644053,1713164953872,-22777.83227765,0.00021334,2]
[322644054,1713164953893,-326.84815688,0.00021335,2]
[322644055,1713164953914,-225.96730159,0.00021335,2]
[322644056,1713164953934,-188.8842107,0.00021335,2]
[322644057,1713164953958,-1309.46372676,0.00021335,2]
[322644058,1713164953979,-154.70605849,0.00021335,2]
[322644059,1713164954000,-2583.74745148,0.00021336,2]
[322644060,1713164954020,-5575.62419768,0.00021336,2]
[322644061,1713164954042,-500.0,0.00021336,2]
[322644062,1713164954063,-500.0,0.00021336,2]
[322644063,1713164954087,-500.0,0.00021336,2]
[322644064,1713164954109,-507.04713963,0.00021336,2]
[322644065,1713164954130,-500.0,0.00021336,2]
[322644066,1713164954151,-500.0,0.00021336,2]
[322644067,1713164954174,-500.0,0.00021336,2]
[322644068,1713164954205,-325.60194488,0.00021336,2]
[322644069,1713164954226,-500.0,0.00021336,2]
[322644070,1713164954249,-500.0,0.00021336,2]
[322644071,1713164954271,-500.0,0.00021336,2]
[322644072,1713164954292,-500.0,0.00021336,2]
[322644073,1713164954313,-500.0,0.00021336,2]
[322644074,1713164954332,-500.0,0.00021336,2]
[322644075,1713164954356,-1238.23132405,0.00021343,2]
[322644076,1713164954377,-360.43123412,0.00021344,2]
[322644077,1713164954399,-498.03167244,0.00021344,2]
[322644078,1713164954420,-155.55293466,0.00021344,2]
[322644079,1713164954444,-157.4409618,0.00021344,2]
[322644080,1713164954464,-516.24732225,0.00021344,2]
[322644081,1713164954486,-173.96784153,0.00021354,2]
[322644082,1713164954507,-2619.93201651,0.00021455,2]
[322644083,1713164954527,-1614.24347196,0.00021464,2]
[322644084,1713164954670,-176.9435793,0.00021609,2]
[322644085,1713164954695,-158.76974363,0.00022,2]
[322644086,1713164954716,-215.92022191,0.00022876,2]
[322644087,1713164954738,-155.25159508,0.00022883,2]
[322644088,1713164954759,-937.19103165,0.00022883,2]
[322644089,1713164954779,-204.49032967,0.00022993,2]
[322644090,1713164954800,-154.87609912,0.00022993,2]
[322644091,1713164954820,-200.0,0.00022993,2]
[322644092,1713164954841,-155.28265412,0.00022993,2]
[322644093,1713164954861,-155.01546438,0.00022993,2]
[322644094,1713164954881,-154.92253873,0.00022993,2]
[322644095,1713164954901,-1087.97739489,0.00022993,2]
[322644096,1713164954922,-250.26674158,0.00022993,2]
[322644097,1713164954944,-277.24658734,0.00022993,2]
[322644098,1713164954965,-282.46191731,0.00022993,2]
[322644099,1713164954985,-156.67063917,0.00022993,2]
[322644100,1713164955006,-163.8615962,0.00022993,2]
[322644101,1713164955027,-211.451032,0.00022993,2]
[322644102,1713164955047,-242.92908465,0.00023,2]
[322644103,1713164955070,-420.0,0.00023192,2]
[322644104,1713164955090,-420.0,0.00023461,2]
[322644105,1713164955110,-599.93513208,0.00025,2]
[322644106,1713164955131,-156.98200501,0.00025,2]
[322644107,1713164955150,-587.0,0.0002522,2]
[322644108,1713164955175,-1614.24347193,0.00025546,2]
[322644109,1713164955199,-587.0,0.00025807,2]
[322644110,1713164955218,-1001.23896915,0.000262,7]
[322644111,1713164955240,-601.81614276,0.00026997,2]
[322644112,1713164955261,-155.95381061,0.00026997,2]
[322644113,1713164955281,-155.26211876,0.00026997,2]
[322644114,1713164955301,-172.89883231,0.00026997,2]
[322644115,1713164955320,-155.000001,0.00026997,2]
[322644116,1713164955340,-155.26904192,0.00026997,2]
[322644117,1713164955359,-687.6463722,0.00026997,2]
[322644118,1713164955379,-1853.93223461,0.00026997,2]
[322644119,1713164955400,-470.34138776,0.00026997,2]
[322644120,1713164955419,-157.38490406,0.00026997,2]
[322644121,1713164955439,-13645.32635987,0.00027,2]
[322644122,1713164955463,-209.5633,0.00027397,2]
[322644123,1713164955487,-166.666666,0.00027397,2]
[322644124,1713164955507,-264.562105,0.00027397,2]
[322644125,1713164955528,-1000.0,0.00027397,2]
[322644126,1713164955548,-973.82372611,0.000274,2]
[322644127,1713164955569,-823.0,0.00027424,2]
[322644128,1713164955589,-37607.76109813,0.000275,2]
[322644129,1713164955610,-166.666666,0.00028038,2]
[322644130,1713164955632,-823.0,0.00028388,2]
[322644131,1713164955652,-166.666666,0.00028679,2]
[322644132,1713164955672,-166.666666,0.00029321,2]
[322644133,1713164955693,-1614.24347193,0.00029627,2]
[322644134,1713164955715,-332.0,0.00029821,2]
[322644135,1713164955734,-166.666666,0.00029962,2]
[322644136,1713164955753,-23839.32857401,0.00029987,2]
[322644137,1713164955773,-199.999999,0.0003,2]
[322644138,1713164955794,-338.0,0.0003,2]
[322644139,1713164955814,-58453.90445462,0.0003,2]
[322644140,1713164957144,-154.70605849,0.00021326,2]
[322644141,1713164957172,-154.70605849,0.00021326,2]
[322644142,1713164957203,-188.8842107,0.00021326,2]
[322644143,1713164957228,-59063.66666477,0.00021327,2]
[322644144,1713164960480,863.42126784,0.00021326,2]
[322644145,1713164962109,-4712.20292984,0.00021326,2]
[322644148,1713164976202,1015.79679893,0.000279,2]
[322644149,1713165004888,156.98200501,0.00028266,2]
[322644150,1713165022823,156.98200501,0.00028281,2]
[322644210,1713165031875,-169.28436078,0.00029898,2]
[322644212,1713165031884,-155.75168367,0.00029998,2]
[322644214,1713165031893,-154.70605849,0.00029998,2]
[322644216,1713165031902,-158.81895496,0.00029998,2]
[322644218,1713165031911,-161.77699218,0.00029998,2]
[322644220,1713165031920,-300.0,0.00029998,2]
[322644222,1713165031929,-159.54362742,0.00029999,2]
[322644224,1713165031937,-154.70605849,0.00029999,2]
[322644226,1713165031946,-796.46091487,0.00029999,2]
[322644228,1713165031955,-10.47934031,0.00029999,2]
[322644240,1713165032101,-455.06341007,0.00029999,2]
[322644241,1713165032110,-182.88724285,0.00029999,2]
[322644242,1713165032120,-22027.15706337,0.0003,2]
[322644243,1713165032128,-500.0,0.00030136,2]
[322644244,1713165032137,-500.0,0.00030191,2]
[322644245,1713165032146,-500.0,0.00030246,2]
[322644246,1713165032155,-500.0,0.00030301,2]
[322644247,1713165032164,-500.0,0.00030356,2]
[322644248,1713165032174,-1543.1974716,0.00030571,2]
[322644250,1713165032185,-166.666666,0.00030603,2]
[322644252,1713165032195,-827.15111932,0.0003161,2]
[322644253,1713165032204,-169.28436075,0.00031831,2]
[322644255,1713165032213,-173.96784152,0.0003186,5]
[322644256,1713165032222,-191.09643603,0.00032514,4]
[322644257,1713165032233,-208.981927,0.00032515,2]
[322644258,1713165032242,-1015.79679893,0.000329,2]
[322644259,1713165032252,-420.0,0.00032998,2]
[322644260,1713165032262,-264.562105,0.00033165,2]
[322644261,1713165032274,-630.35755597,0.00033191,2]
[322644262,1713165032283,-1614.24347193,0.00033709,2]
[322644263,1713165032292,-158.800896,0.00033797,2]
[322644264,1713165032301,-465.39337493,0.00034199,4]
[322644265,1713165032310,-1242.51023388,0.000342,4]
[322644266,1713165032319,-337.47352438,0.00034555,10]
[322644267,1713165032328,-620.5178778,0.0003485,2]
[322644268,1713165032338,-10260.53618586,0.00035,2]
[322644269,1713165032349,-361.12,0.00035,30]
[322644270,1713165032358,-1242.51023388,0.00035,4]
[322644271,1713165032367,-596.97026302,0.00035238,2]
[322644272,1713165032376,-503.75560637,0.00035239,4]
[322644273,1713165032386,-2115.21864091,0.00035397,4]
[322644274,1713165032395,-8000.0,0.00035398,4]
[322644275,1713165032404,-3950.40786229,0.00035398,4]
[322644276,1713165032414,-1000.0,0.00035398,2]
[322644277,1713165032424,-154.70605849,0.00035398,4]
[322644278,1713165032433,-154.70605849,0.00035398,4]
[322644279,1713165032445,-154.70605849,0.00035398,4]
[322644280,1713165032455,-6869.95989293,0.00035399,4]
[322644281,1713165032465,-2343.0,0.000354,30]
[322644282,1713165032476,-55999.91600001,0.00035615,4]
[322644283,1713165032485,-2061.651286,0.00035616,120]
[322644284,1713165032495,-654.54630423,0.00035842,4]
[322644285,1713165032505,-155.26741746,0.0003608,4]
[322644286,1713165032517,-587.0,0.00036298,2]
[322644287,1713165032527,-155.42192622,0.00036448,30]
[322644288,1713165032537,-390.12450563,0.000365,2]
[322644289,1713165032547,-620.02589389,0.00036593,2]
[322644290,1713165032557,-188.53452107,0.00036604,2]
[322644291,1713165032567,-151.1669455,0.00036772,2]
[322644292,1713165032576,-22661.7498,0.00036773,30]
[322644293,1713165032586,-1000.0,0.000368,3]
[322644294,1713165032596,-181.3262876,0.00036816,4]
[322644295,1713165032605,-241.07910305,0.00036816,4]
[322644296,1713165032615,-269.11609668,0.00036816,4]
[322644297,1713165032625,-2007.62821039,0.00036816,4]
[322644298,1713165032635,-155.49974176,0.00036816,4]
[322644299,1713165032646,-154.70605849,0.00037,7]
[322644300,1713165032662,-2000.0,0.00037,2]
[322644301,1713165032672,-2046.20344708,0.0003735,2]
[322644302,1713165032681,-4613.19765004,0.00037351,4]
[322644303,1713165032691,-3000.0,0.000375,14]
[322644304,1713165032701,-3000.0,0.0003751,14]
[322644305,1713165032711,-3000.0,0.0003752,14]
[322644306,1713165032721,-3000.0,0.0003753,14]
[322644307,1713165032731,-3000.0,0.0003754,14]
[322644308,1713165032741,-3000.0,0.0003755,14]
[322644309,1713165032751,-3000.0,0.0003756,14]
[322644310,1713165032761,-3000.0,0.0003757,14]
[322644311,1713165032772,-3000.0,0.0003758,14]
[322644312,1713165032783,-3000.0,0.0003759,14]
[322644313,1713165032793,-3000.0,0.000376,14]
[322644314,1713165032803,-3000.0,0.0003761,14]
[322644315,1713165032814,-150.98554921,0.0003762,2]
[322644316,1713165032825,-3000.0,0.0003762,14]
[322644317,1713165032835,-3000.0,0.0003763,14]
[322644318,1713165032845,-3000.0,0.0003764,14]
[322644319,1713165032855,-3000.0,0.0003765,15]
[322644320,1713165032865,-213.3182736,0.00037659,4]
[322644321,1713165032875,-3000.0,0.0003766,15]
[322644322,1713165032886,-3000.0,0.0003767,15]
[322644323,1713165032895,-3000.0,0.0003768,15]
[322644324,1713165032905,-154.70605849,0.00037688,4]
[322644325,1713165032915,-3000.0,0.0003769,15]
[322644326,1713165032924,-3000.0,0.000377,15]
[322644327,1713165032934,-253.77916984,0.00037709,2]
[322644328,1713165032944,-6043.65661062,0.00037709,4]
[322644329,1713165032954,-3000.0,0.0003771,15]
[322644330,1713165032964,-3000.0,0.0003772,15]
[322644331,1713165032974,-151.92,0.00037727,2]
[322644332,1713165032983,-151.92,0.00037727,2]
[322644333,1713165032993,-156.7014226,0.00037728,4]
[322644334,1713165033003,-155.86350771,0.00037728,4]
[322644335,1713165033014,-1341.03066834,0.00037728,4]
[322644336,1713165033024,-155.47914697,0.00037728,4]
[322644337,1713165033034,-327.95751695,0.00037728,4]
[322644338,1713165033043,-1661.52726589,0.00037728,4]
[322644339,1713165033053,-13148.50833326,0.00037728,4]
[322644340,1713165033062,-1172.75073328,0.00037728,4]
[322644341,1713165033071,-624.79661021,0.00037728,4]
[322644342,1713165033080,-237.47977145,0.00037728,4]
[322644343,1713165033089,-164.91957041,0.00037728,4]
[322644344,1713165033100,-303.60290042,0.00037728,4]
[322644345,1713165033110,-1388.30848831,0.00037728,4]
[322644346,1713165033119,-42157.14379373,0.00037728,4]
[322644347,1713165033130,-154.81419208,0.00037728,4]
[322644348,1713165033139,-701.47521218,0.00037728,4]
[322644349,1713165033148,-3730.86512455,0.00037729,4]
[322644350,1713165033157,-548.51866573,0.00037729,4]
[322644351,1713165033166,-3000.0,0.0003773,15]
[322644352,1713165033175,-3000.0,0.0003774,15]
[322644353,1713165033188,-3000.0,0.0003775,15]
[322644354,1713165033197,-3000.0,0.0003776,15]
[322644355,1713165033207,-65984.91549222,0.0003777,5]
[322644356,1713165033216,-3000.0,0.0003777,15]
[322644357,1713165033226,-150.0,0.00037772,2]
[322644358,1713165033236,-3000.0,0.0003778,15]
[322644359,1713165033252,-3000.0,0.0003779,15]
[322644360,1713165033262,-1614.24347193,0.0003779,2]
[322644361,1713165033272,-3000.0,0.000378,15]
[322644362,1713165033281,-1937.49355631,0.0003781,30]
[322644363,1713165033290,-3000.0,0.0003781,15]
[322644364,1713165033300,-3000.0,0.0003782,15]
[322644365,1713165033309,-3000.0,0.0003783,15]
[322644366,1713165033319,-3000.0,0.0003784,15]
[322644367,1713165033327,-3000.0,0.0003785,15]
[322644368,1713165033336,-3000.0,0.0003786,15]
[322644369,1713165033345,-3000.0,0.0003787,16]
[322644370,1713165033354,-3000.0,0.0003788,16]
[322644371,1713165033363,-3000.0,0.0003789,16]
[322644372,1713165033372,-1015.79679893,0.000379,2]
[322644373,1713165033381,-3000.0,0.000379,16]
[322644374,1713165033390,-3177.01965301,0.000379,2]
[322644375,1713165033399,-3000.0,0.0003791,16]
[322644376,1713165033408,-3000.0,0.0003792,16]
[322644377,1713165033418,-3000.0,0.0003793,16]
[322644378,1713165033428,-9394.86542554,0.00037939,7]
[322644379,1713165033437,-3000.0,0.0003794,16]
[322644380,1713165033446,-3000.0,0.0003795,16]
[322644381,1713165033454,-3000.0,0.0003796,16]
[322644382,1713165033464,-3000.0,0.0003797,16]
[322644383,1713165033474,-3000.0,0.0003798,16]
[322644384,1713165033483,-3000.0,0.0003799,16]
[322644385,1713165033493,-461.89048179,0.00037998,4]
[322644386,1713165033502,-539575.72807936,0.00038,30]
[322644387,1713165033510,-219092.14476948,0.00038,5]
[322644388,1713165033522,-155.2992206,0.00038,2]
[322644389,1713165033534,-300.0,0.00038,30]
[322644390,1713165033543,-1166.04266382,0.00038,2]
[322644391,1713165033552,-74774.86561541,0.00038,120]
[322644431,1713165037898,-169.28436075,0.00033763,2]
[322644433,1713165037909,-166.666666,0.00035154,2]